Cogmind - Beta 10.2 *** ADVENTURER MODE // 2021.10.15 @ 17:59:54 Player: Flamebroken Result: Destroyed by G-47 Trooper with Particle Gun Performance ------------- Evolutions (2) 1000 Regions Visited (3) 600 Robots Destroyed (32) 160 Value Destroyed (783) 783 Prototype IDs (0) 0 Alien Tech Used (0) 0 Bonus (45) 45 TOTAL SCORE: 2588 Bonus ------- High Alert Combat Kills 45 Cogmind --------- Core Integrity 0/550 Matter 287/300 Energy 99/100 System Corruption 0% Temperature Cool (9) Movement Walking (120) Location -8/Materials Parts ------- > --- POWER (1) -------- (None) > --- PROPULSION (2) --- Aluminum Leg > --- UTILITY (6) ------ Core Shielding > --- WEAPON (2) ------- Heavy Assault Rifle Axe > --- INVENTORY (4) ---- Weapon Cycler Weapon Cycler Peak State ------------ > --- POWER ------------ Nuclear Core > --- PROPULSION ------- Aluminum Leg Carbon-fiber Leg > --- UTILITY ---------- Visual Processing Unit Improved Sensor Array Hardlight Generator > --- WEAPON ----------- Axe Axe > --- INVENTORY -------- Weapon Cycler Weapon Cycler Core Shielding Axe [Rating: 21] Favorites ----------- Power Light Ion Engine Engine Light Ion Engine Power Core Nuclear Core Propulsion Light Treads Treads Light Treads Leg Carbon-fiber Leg Wheel Compact Wheel Flight Unit Flight Unit Utility ECM Suite Device ECM Suite Processor Visual Processing Unit Protection Propulsion Shielding Weapon Axe Energy Gun Medium Laser Ballistic Gun Heavy Assault Rifle Impact Weapon Heavy Hammer Slashing Weapon Axe Build | -11 -10 -9 -8 ------- Run | Scr Mat Mat Mat Slots Evolved 4 | . . 2 2 Power . | . . . . Propulsion . | . . . . Utility 4 | . . 2 2 Weapon . | . . . . Parts Attached 34 | 5 11 11 7 Power 4 | 1 . 2 1 Engine 2 | 1 . 1 . Core 2 | . . 1 1 Reactor . | . . . . Propulsion 12 | 2 5 3 2 Treads 4 | . 4 . . Leg 5 | . . 3 2 Wheel 2 | 2 . . . Hover . | . . . . Flight 1 | . 1 . . Utility 7 | . 2 3 2 Device 3 | . 1 1 1 Storage . | . . . . Processor 1 | . . 1 . Hackware . | . . . . Protection 3 | . 1 1 1 Artifact . | . . . . Weapon 11 | 2 4 3 2 Energy Gun 4 | 2 2 . . Energy Cannon . | . . . . Ballistic Gun 1 | . . . 1 Ballistic Cannon . | . . . . Launcher . | . . . . Special Weapon . | . . . . Impact Weapon 2 | . 2 . . Slashing Weapon 4 | . . 3 1 Piercing Weapon . | . . . . Special Melee Weapon . | . . . . Unidentified Prototypes . | . . . . Parts Lost 15 | . . 6 9 Power 2 | . . 1 1 Propulsion 4 | . . 1 3 Utility 6 | . . 3 3 Weapon 3 | . . 1 2 Highest Loss Streak 8 | . . 2 8 Average Slot Usage (%) 78 | . 86 80 53 Engine 7 | . 14 5 . Core 3 | . . 4 6 Treads 12 | . 26 8 . Leg 9 | . . 12 9 Device 10 | . 10 9 12 Processor 4 | . . 5 6 Protection 8 | . 5 10 1 Energy Gun 3 | . 14 . . Impact Weapon 8 | . 12 8 . Slashing Weapon 10 | . . 13 16 Naked Turns . | . . . . Heaviest Build 19 | 6 13 18 19 Greatest Support 40 | 32 40 40 25 Greatest Overweight (x) 2 | . 1 . 2 Average Overweight (x) . | . . . . Largest Inventory Capacity 4 | 4 4 4 4 Average Capacity 4 | 4 4 4 4 Most Carried 4 | 4 4 4 4 Average Carried 3 | 2 3 3 3 Final Capacity 4 | 4 4 4 4 Final Carried 4 | 4 4 3 2 Class Distribution -------------------- 100% | Mutant Dominant Class ---------------- Mutant | -10/Materials Mutant | -9/Materials Mutant | -8/Materials Resources | -11 -10 -9 -8 ----------- Run | Scr Mat Mat Mat Matter Collected 510 | 242 88 140 40 Remotely . | . . . . Salvage Created 1040 | . 47 787 206 Parts 68 | . 6 50 12 Haulers Intercepted . | . . . . Recyclers Shooed . | . . . . Parts Field Recycled . | . . . . Retrieved Matter . | . . . . Parts Self-Destructed . | . . . . Prevented . | . . . . Kills | -11 -10 -9 -8 ------- Run | Scr Mat Mat Mat Combat Hostiles Destroyed 30 | . 3 21 6 Melee 27 | . . 21 6 Guns 3 | . 3 . . Classes Destroyed 4 | . 1 3 . Watcher 2 | . . 2 . Swarmer 16 | . 3 10 3 Grunt 8 | . . 6 2 Sentry 6 | . . 5 1 Best Kill Streak 8 | . 3 8 2 Combat Bots Only 8 | . 3 8 2 Max Kills in Single Turn 1 | . 1 1 1 Gunslinging . | . . . . Exploded . | . . . . Melee 1 | . . 1 1 Uniques/NPCs Destroyed . | . . . . Combat | -11 -10 -9 -8 -------- Run | Scr Mat Mat Mat Damage Taken 2190 | . 92 1106 992 Core 833 | . 4 272 557 Absorbed by Shields . | . . . . Core Remaining (%) 76 | 100 98 32 . Volleys Fired 9 | . 8 . 1 Largest 2 | . 2 . 1 Hottest 90 | . 90 . 23 Shots Fired 17 | . 16 . 1 Gun 17 | . 16 . 1 Cannon . | . . . . Launcher . | . . . . Special . | . . . . Kinetic 1 | . . . 1 Thermal 15 | . 15 . . Explosive . | . . . . Electromagnetic 1 | . 1 . . Robot Hit Streak 5 | . 4 . 5 Robot Miss Streak 2 | . 2 . . Penetration Max . | . . . . Secondary Targets . | . . . . Shots Hit Robots 99 | . 11 64 24 Core Hits 32 | . 3 23 6 Critical Hits 4 | . . 3 1 Critical Kills 2 | . . 2 . Critical Parts Destroyed 2 | . . 1 1 Melee Attacks 105 | . 2 77 26 Impact 28 | . 2 26 . Slashing 77 | . . 51 26 Piercing . | . . . . Sneak Attacks . | . . . . Combat Hostiles . | . . . . Follow-up Attacks 13 | . 1 10 2 Damage Inflicted 2909 | . 155 1959 795 Guns 136 | . 121 . 15 Cannons . | . . . . Explosions . | . . . . Melee 2773 | . 34 1959 780 Ramming . | . . . . Kinetic 15 | . . . 15 Thermal 121 | . 121 . . Explosive . | . . . . Electromagnetic . | . . . . Impact 544 | . 34 510 . Slashing 2229 | . . 1449 780 Piercing . | . . . . Highest Corruption . | . . . . Average Corruption . | . . . . Corruption Purged . | . . . . Overload Shots . | . . . . Overflow Damage 53 | . 4 30 19 Projectiles . | . . . . Explosions . | . . . . Melee 53 | . 4 30 19 Knockbacks 3 | . . 3 . Impact 3 | . . 3 . Kinetic . | . . . . Secondary . | . . . . Self-Inflicted Damage . | . . . . Shots . | . . . . Rammed . | . . . . Targets Rammed . | . . . . Kicked . | . . . . Crushed . | . . . . Highest Temperature 134 | . 134 . . Average Temperature 63 | . 63 . . Received Heat Transfer 930 | . . 408 522 Siege Activations . | . . . . Robots Corrupted . | . . . . Combat Hostiles . | . . . . Parts Fried . | . . . . Impact Corruptions 1 | . 1 . . Robots Melted . | . . . . Combat Hostiles . | . . . . Parts Melted . | . . . . Heat Transferred 334 | . 334 . . Parts Sabotaged . | . . . . Parts Stolen . | . . . . Parts Stripped . | . . . . Power Chain Reactions . | . . . . Missiles Intercepted . | . . . . Alert | -11 -10 -9 -8 ------- Run | Scr Mat Mat Mat Peak Influence 537 | . 100 537 272 Initial 177 | . . . 177 Average 165 | . 58 207 219 Maximum Alert Level 2 | . . 2 1 Low Security (%) 69 | 100 100 62 31 Level 1 14 | . . 10 68 Level 2 15 | . . 26 . Level 3 . | . . . . Level 4 . | . . . . Level 5 . | . . . . High Security . | . . . . Max Security . | . . . . Squads Dispatched 3 | . . 1 2 Investigation . | . . . . Extermination . | . . . . Reinforcement 1 | . . 1 . Assault . | . . . . Garrison 2 | . . . 2 Intercept . | . . . . Construction Impeded . | . . . . Haulers Reinforced . | . . . . Stealth | -11 -10 -9 -8 --------- Run | Scr Mat Mat Mat Distress Signals 2 | . . 1 1 Communications Jammed . | . . . . Distress Signals . | . . . . Times Spotted 53 | . 4 37 12 Peak Tracking Total 7 | . 3 7 4 Tactical Retreats 6 | . 1 5 . Traps | -11 -10 -9 -8 ------- Run | Scr Mat Mat Mat Traps Triggered . | . . . . Indirectly . | . . . . Trap Hack Attempts . | . . . . Triggered . | . . . . Disarmed . | . . . . Reprogrammed . | . . . . Reused . | . . . . Traps Extracted . | . . . . Installed . | . . . . Triggered . | . . . . Machines | -11 -10 -9 -8 ---------- Run | Scr Mat Mat Mat Machines Disabled 1 | . . 1 . Max in Single Turn 1 | . . 1 . Machines Sabotaged . | . . . . Garrisons Compromised . | . . . . Overloaded Fab Kills . | . . . . Fab Network Shutdowns . | . . . . Hacking | -11 -10 -9 -8 --------- Run | Scr Mat Mat Mat Machines Accessed 1 | . . 1 . Terminals 1 | . . 1 . Fabricators . | . . . . Repair Stations . | . . . . Recycling Units . | . . . . Scanalyzers . | . . . . Garrison Access . | . . . . Total Hacks 1 | . . 1 . Successful 1 | . . 1 . Failed . | . . . . Catastrophic . | . . . . Database Lockouts . | . . . . Manual . | . . . . Terminals 1 | . . 1 . Fabricators . | . . . . Repair Stations . | . . . . Recycling Units . | . . . . Scanalyzers . | . . . . Garrison Access . | . . . . Terminal Hacks 1 | . . 1 . Alert Level 1 | . . 1 . Fabricator Hacks . | . . . . Repair Station Hacks . | . . . . Recycling Unit Hacks . | . . . . Scanalyzer . | . . . . Garrison Access Hacks . | . . . . Unauthorized Hacks . | . . . . Terminals . | . . . . Fabricators . | . . . . Repair Stations . | . . . . Recycling Units . | . . . . Scanalyzers . | . . . . Garrison Access . | . . . . Data Cores Recovered . | . . . . Used . | . . . . Hacking Detections 1 | . . 1 . Full Trace Events . | . . . . Feedback Events . | . . . . Feedback Blocked . | . . . . Robot Schematics Acquired . | . . . . Robots Built . | . . . . Matter . | . . . . Time . | . . . . Total Robot Build Rating . | . . . . Part Schematics Acquired . | . . . . Parts Built . | . . . . Matter . | . . . . Time . | . . . . Total Part Build Rating . | . . . . Parts Repaired . | . . . . Time . | . . . . Parts Recycled . | . . . . Recycled Matter . | . . . . Retrieved Matter . | . . . . Retrieved Components . | . . . . Parts Scanalyzed . | . . . . Part Schematics Acquired . | . . . . Parts Damaged . | . . . . Bothacking | -11 -10 -9 -8 ------------ Run | Scr Mat Mat Mat Used RIF Installer . | . . . . Robots Hacked . | . . . . Non-combat . | . . . . Combat . | . . . . Robot Hacks Applied . | . . . . Relay Couplers Released . | . . . . Robots Rewired . | . . . . Allies Hacked . | . . . . Hacks Repelled . | . . . . Allies | -11 -10 -9 -8 -------- Run | Scr Mat Mat Mat Total Allies . | . . . . Largest Group . | . . . . Highest-Rated Group . | . . . . Highest-Rated Ally . | . . . . Total Orders . | . . . . Ally Attacks . | . . . . Total Damage . | . . . . Kills . | . . . . Allies Corrupted . | . . . . Allies Melted . | . . . . Intel | -11 -10 -9 -8 ------- Run | Scr Mat Mat Mat Robot Analysis Total . | . . . . Derelict Logs Recovered . | . . . . Drone Launches . | . . . . Drone Recoveries . | . . . . Exploration | -11 -10 -9 -8 ------------- Run | Scr Mat Mat Mat Turns Passed 1795 | 57 448 1074 216 Spaces Moved 997 | 47 253 594 103 Core 14 | 3 1 . 10 Treads 459 | . 234 225 . Legs 462 | . . 369 93 Wheels 62 | 44 18 . . Hover . | . . . . Flight . | . . . . Fastest Speed 50 | 50 100 120 100 Average Speed 138 | 96 155 135 133 Slowest Speed 160 | 100 160 160 150 Overloaded Moves . | . . . . Propulsion Burnouts . | . . . . Robots Hopped . | . . . . Cave-ins Triggered . | . . . . Exploration Rate (%) 33 | 3 58 55 16 Regions Visited 3 Branch Regions . Pre-discovered Areas . | . . . . Known Exits Taken . | . . . . Unknown Exits Taken 3 | 1 1 1 . Scrap Searched . | . . . . Spaces Dug . | . . . . Terrain Destroyed . | . . . . Melee . | . . . . Projectile . | . . . . AOE . | . . . . Terrain Rammed . | . . . . Walls Destroyed . | . . . . Machines Disabled . | . . . . Actions | -11 -10 -9 -8 --------- Run | Scr Mat Mat Mat Total 1228 | 55 292 744 137 Wait 64 | . 1 62 1 Move 994 | 46 252 593 103 Hop . | . . . . Pick Up 17 | 4 6 5 2 Fast Attach 26 | 5 8 9 4 Attach 8 | . 3 2 3 Detach 1 | . 1 . . Swap . | . . . . Drop 22 | . 12 10 . Fire 9 | . 8 . 1 Melee 87 | . 1 63 23 Ram . | . . . . Kick . | . . . . Crush . | . . . . Escape Stasis . | . . . . Rewire . | . . . . Trap . | . . . . Miscellaneous . | . . . . Route ------- -11/Scrapyard -10/Materials (discovered 2 exits: *Mat / [*Min]) -9/Materials -8/Materials History --------- Turn | Location | Event 36 | -11/Scrapyard | Discovered new exit (range 15) 58 | -11/Scrapyard | Entered Materials 261 | -10/Materials | Discovered new exit (range 16) 327 | -10/Materials | Build established: Mutant 484 | -10/Materials | Discovered new exit (range 10) 506 | -10/Materials | Entered another Materials area 506 | -9/Materials | Evolved 2 slots: Utility x2 1248 | -9/Materials | Core integrity fell below 50% 1278 | -9/Materials | Destroyed 8 combat bots 1529 | -9/Materials | Discovered new exit (range 16) 1580 | -9/Materials | Entered another Materials area 1580 | -8/Materials | Evolved 2 slots: Utility x2 1679 | -8/Materials | Garrison activated, responded to threat 1747 | -8/Materials | Core integrity fell below 50% 1766 | -8/Materials | Core integrity fell below 20% 1796 | -8/Materials | Destroyed by G-47 Trooper with Particle Gun Last Messages --------------- 01773_ K-01 Serf destroyed. 01774_ U-05 Engineer lays Concrete. 01777_ K-01 Serf collects debris. 01777_ U-05 Engineer lays Concrete. 01782_ K-01 Serf collects debris. 01782_ G-47 Trooper destroyed. 01782_ U-05 Engineer lays Concrete. 01786_ Aluminum Leg destroyed. 01786_ U-05 Engineer lays Concrete. 01786_ Acquired Aluminum Leg. 01787_ K-01 Serf collects debris. 01787_ U-05 Engineer lays Concrete. 01790_ Acquired 15 matter. 01791_ U-05 Engineer lays Concrete. 01791_ K-01 Serf collects debris. 01792_ U-05 Engineer lays Concrete. 01792_ Acquired Hvy. Assault Rifle. 01793_ U-05 Engineer lays Concrete. 01795_ K-01 Serf collects debris. 01796_ U-05 Engineer lays Concrete. Map ----- +----------------------------------------------------+ | ?????????????????????????????????????????????##### | | ????????????????????????????????######???????# # | | ????????????????????????????????# #???????# # | | ????????????????????????????????? #???????# # | | ????????????????????????########### ########## + | | ????????????????????????# # | | ????????????????????????# # | | ????????????????????????# # | | ????????????????????????# ######### ### ### | | ????????????????????????# # ## #?# #?# | | ????????????????????????# [#= ! ##!!||! #?# #?? | | ????????????????????????# =+% ##!!||! #?# #?? | | ????????????????????????# # !! ! #########?# #?? | | ????????????????????????# # !! #?????????# #?? | | ????????????????####????# # #?????????# #?? | | ???????????????##!!!!???# ########?????????# #?? | | ???????????????#! ???# #????????????????# ??? | | ???????????????#! !??# w################## ??? | | ????????????#### ### ??? | | ?????????? ??? | | ?????????? ??? | | ?????????? " g u "" """ ""??? | | ????????????###### " = "" """ T"??? | | ?????????????????# " =%* "" """ ""#?? | | ?????????????????# r !% ! #?? | | ?????????????????# @%= ! #?? | | ?????????????????# a% # | | ?????????????????# ! + | | ?????????????????# ] b%[ # | | ?????????????????###############=k # | | ???????????????????????????????# l ? | | ???????????????????????????????# "" ? | | ???????????????????????????????# """"" ?? | | ???????????????????????????????# """"" ?? | | ???????????????????????????????+ """"" ?? | | ???????????????????????????????# """ ? ####??? | | ???????????????????????????????# ????? #?????? | | ???????????????????????????????? ?????????????? | | ???????????????????????????????? ?????????????? | | ???????????????????????????????? ?????????????? | | ???????????????????????????????? ?????????????? | | ???????????????????????????????? ?????????????? | | ???????????????????????????????? ?????????????? | | ???????????????????????????????? ?????????????? | | ???????????????????????????????? ??????????????? | | ?????????????????????????????????????????????????? | | ?????????????????????????????????????????????????? | | ?????????????????????????????????????????????????? | | ?????????????????????????????????????????????????? | | ?????????????????????????????????????????????????? | +----------------------------------------------------+ Best States ------------- Heat Dissipation 31 Energy Generation 14 Energy Capacity 265 Matter Stores 300 Matter Capacity 300 Sight Range 18 Robot Scan Range 13 Terrain Scan Density 10 ECM Strength 1 Armor Coverage 150 Resistance: KI 20 Resistance: TH 20 Resistance: EX 20 Resistance: EM 20 Resistance: I 20 Resistance: S 20 Resistance: P 20 Core Shielding 20 Propulsion Shielding 33 Evasion (%) 40 Recoil Reduction 2 Offensive Hacking 10 Item Schematics ----------------- None Robot Schematics ------------------ None Fabricated ------------ Nothing Alien Tech Used ----------------- None Achievements -------------- None Challenges ------------ None Game ------ Seed LightBombardmentGreatsword Manual? 0 Play Time 00:24:31 Cumulative 88.9 hours Start 2021.10.15 @ 03:02:46 End 2021.10.15 @ 17:59:54 Sessions 3 Manual Loads 0 Difficulty Adventurer Special Mode None Game No. 102 Rogue 90 Adventurer 12 Explorer 0 Win Type - Total 0 Types 0/0/0/0/0/0/0/0/0 Lore% 18 Gallery% 38 Achievement% 23 Wizard Run 0 Options --------- ASCII 0 Keyboard 0 Movement Numpad Keybinds 0 Fullscreen 1 Font 16/Terminus Map View 76x50 Tactical HUD 1 Map Filters NONE Filters NONE Steam 1 RUN: 9b2414d1-2739-4b67-b005-25e24fefe4a1